[Event "Croatian 1B League 2022"]
[Site "Porec"]
[Date "2022.09.26"]
[Round "3.7"]
[White "Dragnev, Valentin"]
[Black "Doric, Darko"]
[Result "1/2-1/2"]
[ECO "D27"]
[WhiteElo "2544"]
[BlackElo "2457"]
[Annotator "TA"]
[PlyCount "84"]
[EventDate "2022.09.24"]
[EventType "team-tourn"]
[EventCountry "CRO"]
[SourceTitle "playchess.com"]
[Source "ChessBase"]
[SourceQuality "1"]
[TimeControl "40/5400+30:1800+30"]

{[%evp 20,84,15,8,12,11,16,17,17,11,32,0,0,0,0,-14,12,14,25,0,15,0,0,0,0,0,0,0,0,0,0,0,0,-6,0,-3,-18,-17,0,0,0,0,0,0,0,0,0,0,0,0,0,0,0,0,0,0,0,0,0,0,0,0,0,0,0,0,0]} 1. d4 {[%emt 0:00:57] ChessBase II} d5 {[%emt 0:00:10]} 2. c4 {[%emt 0:00:08]} dxc4 {[%emt 0:00:08]} 3. Nf3 {[%emt 0:00:43]} Nf6 {[%emt 0:00:10]} 4. e3 {[%emt 0:00:13]} e6 {[%emt 0:00:07]} 5. Bxc4 {[%emt 0:00:11]} c5 {[%emt 0:00:06]} 6. O-O {[%emt 0:00:25]} a6 {[%emt 0:00:59]} 7. b3 {[%emt 0:00:25]} cxd4 {[%emt 0:08:49]} 8. Nxd4 {[%emt 0:00:56]} Bd7 {[%emt 0:01:01]} 9. Nd2 {[%emt 0:08:46][%cal Bb1d2,Bd2f3,Bf3e5][%mdl 32]} Nc6 {[%emt 0:00:09]} 10. N2f3 {[%emt 0:01:50]} Be7 {[%emt 0:01:29]} 11. Bb2 {[%emt 0:02:43]} O-O {[%emt 0:00:21] D27: Queen's Gambit Accepted: Classical main line: 7 e4!? and 7 a4.} 12. Qe2 {[%emt 0:01:14]} Qa5 {[%emt 0:11:09]} 13. Nxc6 {[%emt 0:19:07]} Bxc6 {[%emt 0:00:09]} 14. Ne5 {[%emt 0:00:10] [#]} Bb5 $146 {[%emt 0:06:06]} ({Predecessor:} 14... Rac8 15. Rac1 Ba3 16. Nxc6 Rxc6 17. Bxf6 gxf6 18. Rcd1 Rd8 19. Rxd8+ Qxd8 20. Qf3 Qe7 {0-1 (33) Balla,T (2375)-Foisor,O (2391) Baile Herculane 2010 EXT 2021 [ChessBase II]}) 15. a4 {[%emt 0:00:33]} (15. Qf3 $5 {[%cal Rf3b7]}) 15... Bxc4 {[%emt 0:00:25]} 16. Nxc4 {[%emt 0:00:08]} Qf5 {[%emt 0:01:40]} 17. Bxf6 {[%emt 0:02:01]} gxf6 {[%emt 0:07:05]} 18. Rac1 {[%emt 0:05:34]} Rad8 {[%emt 0:05:33]} 19. Rc3 {[%emt 0:10:42]} Kh8 {[%emt 0:00:51] The position is equal.} 20. Rfc1 {[%emt 0:02:26]} Bb4 {[%emt 0:02:06]} 21. e4 {[%emt 0:06:27]} Qg5 {[%emt 0:04:31]} 22. R3c2 {[%emt 0:00:40]} Rd4 {[%emt 0:00:27]} 23. Rd1 {[%emt 0:05:58]} Rfd8 {[%emt 0:00:23]} 24. Rxd4 {[%emt 0:00:29]} Rxd4 {[%emt 0:00:07]} 25. g3 {[%emt 0:01:05]} Kg7 {[%emt 0:08:59]} 26. Qf3 {[%emt 0:10:04]} b5 {[%emt 0:02:50]} 27. axb5 {[%emt 0:02:19]} axb5 {[%emt 0:00:03]} 28. Nb2 {[%emt 0:00:53]} f5 {[%emt 0:09:42]} 29. exf5 {[%emt 0:07:23]} Qxf5 {[%emt 0:00:49]} 30. Qxf5 {[%emt 0:04:22]} exf5 $11 {[%emt 0:00:23][%mdl 4096] Endgame KRB-KRN} 31. Kf1 {[%emt 0:00:32]} Ba3 {[%emt 0:00:54]} 32. Ke2 {[%emt 0:00:54]} Rb4 {[%emt 0:00:25]} 33. Nd3 {[%emt 0:00:14]} Rxb3 {[%emt 0:00:38]} 34. Rc7 {[%emt 0:00:43]} Bb2 {[%emt 0:06:04]} 35. Rc5 {[%emt 0:01:45]} f4 {[%emt 0:05:46]} 36. gxf4 {[%emt 0:01:44]} Bc3 {[%emt 0:02:10]} 37. Rc7 {[%emt 0:00:26]} b4 {[%emt 0:01:53]} 38. Ne5 {[%emt 0:01:26]} Bxe5 {[%emt 0:01:38]} 39. fxe5 {[%emt 0:00:03] Black must now prevent e6.} Kg6 {[%emt 0:00:19]} 40. Rb7 {[%emt 0:00:00]} Rh3 {[%emt 0:00:00]} 41. Rxb4 {[%emt 0:03:32]} Kf5 {[%emt 0:04:52]} 42. Rb7 {[%emt 0:01:01]} Kxe5 {[%emt 0:00:11] A balanced but interesting game.  Weighted Error Value: White=0.03 (flawless) /Black=0.04 (flawless)} 1/2-1/2

[Event "Croatian 1B League 2022"]
[Site "Porec"]
[Date "2022.09.26"]
[Round "3.8"]
[White "Maksimovic, Bojan"]
[Black "Shengelia, David"]
[Result "1-0"]
[ECO "B27"]
[WhiteElo "2468"]
[BlackElo "2451"]
[Annotator "TA"]
[PlyCount "93"]
[EventDate "2022.09.24"]
[EventType "team-tourn"]
[EventCountry "CRO"]
[SourceTitle "playchess.com"]
[Source "ChessBase"]
[SourceQuality "1"]
[TimeControl "40/5400+30:1800+30"]

{[%evp 14,93,22,16,5,16,33,25,31,0,0,0,0,0,0,-6,104,22,75,77,75,-13,-15,0,0,-16,-24,-24,-35,-31,-34,-32,-23,-29,-25,-29,-28,-26,-10,-35,-32,-38,-21,-28,-20,-17,-20,-27,-27,-27,0,0,0,0,0,0,0,0,175,160,175,0,719,691,668,652,718,659,716,669,838,770,748,628,1636,1654,1608,1391,1657,1608,29963,6280]} 1. e4 {[%emt 0:00:05][%cal Be2e4,Be4e5][%mdl 32]} c6 {[%emt 0:01:57]} 2. Nf3 {[%emt 0:00:13]} d5 {[%emt 0:00:21]} 3. d3 {[%emt 0:00:07]} g6 {[%emt 0:07:36]} 4. e5 {[%emt 0:01:05]} Bg7 {[%emt 0:12:24]} 5. d4 {[%emt 0:00:14]} Bg4 {[%emt 0:13:25]} 6. Nbd2 {[%emt 0:01:28]} c5 {[%emt 0:01:52]} 7. c3 {[%emt 0:05:06]} cxd4 {[%emt 0:04:28]} 8. cxd4 {[%emt 0:00:06]} Nc6 {[%emt 0:00:52] 8...Nc6 was played by the boomers. B27: Sicilian: 2 Nf3, unusual Black 2nd moves.} 9. h3 {[%emt 0:09:39]} Bf5 {[%emt 0:00:32]} 10. Bb5 {[%emt 0:15:00]} Qb6 {[%emt 0:06:03] White has an edge.} 11. Qb3 {[%emt 0:03:28]} e6 {[%emt 0:09:44]} 12. Bxc6+ {[%emt 0:00:34]} Qxc6 {[%emt 0:02:24]} 13. O-O $1 {[%emt 0:00:11] [#]} Ne7 $146 {[%emt 0:11:18]} ({Predecessor:} 13... Bc2 14. Qe3 Ne7 15. Nb1 Nf5 16. Qe2 Be4 17. Be3 Bxf3 18. Qxf3 O-O 19. g4 Nxe3 20. Qxe3 f6 21. exf6 Rxf6 {0-1 (62) Silva,P (2209)-Veiga,J (2358) Gaia 2021}) 14. Qa3 {[%emt 0:03:45]} Be4 {[%emt 0:06:23]} (14... Bf8 $11) 15. Re1 {[%emt 0:05:34]} ({White should play} 15. Nxe4 $16 dxe4 16. Bg5) 15... Nf5 {[%emt 0:07:57]} (15... Bc2 $11 {remains equal.}) 16. g4 $16 {[%emt 0:05:48]} Bf8 {[%emt 0:00:05]} 17. Qc3 {[%emt 0:06:01]} (17. b4 $16) 17... Qxc3 $11 {[%emt 0:00:35]} 18. bxc3 {[%emt 0:00:05]} Bxf3 {[%emt 0:00:06]} 19. gxf5 {[%emt 0:00:07]} (19. Nxf3 $5 {[%cal Rg4f5]} Ne7 20. Bg5 $11) 19... Bh5 {[%emt 0:00:22]} 20. f6 {[%emt 0:00:37]} Rc8 {[%emt 0:01:59]} 21. Rb1 {[%emt 0:02:36]} b6 {[%emt 0:00:04]} 22. Rb3 {[%emt 0:00:05]} g5 {[%emt 0:01:44]} 23. Ba3 {[%emt 0:05:25]} Kd7 {[%emt 0:02:06]} 24. Bxf8 {[%emt 0:02:27]} Rhxf8 {[%emt 0:00:03]} 25. a4 {[%emt 0:00:47]} Rc6 {[%emt 0:04:33]} 26. Kg2 {[%emt 0:04:20][%cal Oa4a5]} Rfc8 {[%emt 0:00:32]} 27. Rc1 {[%emt 0:00:06]} Be2 {[%emt 0:01:13]} 28. Kg3 {[%emt 0:02:20]} h6 {[%emt 0:01:08]} 29. f3 {[%emt 0:01:58]} Bd3 {[%emt 0:00:10]} 30. Kg4 {[%emt 0:00:11]} Bf5+ {[%emt 0:00:33]} 31. Kg3 {[%emt 0:00:18]} h5 {[%emt 0:01:33]} 32. h4 $1 {[%emt 0:03:45]} gxh4+ {[%emt 0:00:29]} 33. Kxh4 {[%emt 0:00:05]} Rg8 {[%emt 0:00:19]} 34. a5 $1 {[%emt 0:00:31]} Rg2 {[%emt 0:01:22]} 35. axb6 {[%emt 0:00:06]} Rxb6 {[%emt 0:01:07] [#]} (35... Rxd2 36. b7 Rc8 37. bxc8=R Kxc8 38. Ra1 Rh2+ 39. Kg3 Rh3+ 40. Kf4 Rh4+ 41. Kg5 $18) (35... axb6 $11 {and Black has nothing to worry.} 36. Nf1 Bd3) 36. Ra1 $1 $18 {[%emt 0:07:44]} Rh2+ {[%emt 0:00:34]} (36... Kc6 37. Rxa7) 37. Kg5 $2 {[%emt 0:08:57]} ({White has to play} 37. Kg3 $18 Rxd2 38. Rxa7+ Kc6 39. Rxb6+ Kxb6 40. Rxf7) 37... Rxd2 $2 {[%emt 0:00:06][%mdl 8192]} ({Don't do} 37... Rg2+ 38. Kh4 Bg6 39. Rxa7+ Kc6 40. Rxb6+ Kxb6 41. Ra2 $14) (37... Kc6 $11 38. Rxa7 Bg6 39. Rxb6+ Kxb6) 38. Rxa7+ {[%emt 0:00:04]} Kc6 {[%emt 0:00:02]} 39. Rxb6+ {[%emt 0:00:08]} Kxb6 {[%emt 0:00:02]} 40. Rxf7 {[%emt 0:00:00][%mdl 4096] Endgame KRB-KR} Rg2+ {[%emt 0:00:00]} 41. Kh4 $1 {[%emt 0:00:35]} Rh2+ {[%emt 0:11:28] [#]} 42. Kg3 $1 {[%emt 0:00:17]} Rh1 {[%emt 0:18:21]} 43. Re7 {[%emt 0:01:47]} h4+ {[%emt 0:02:21]} 44. Kg2 {[%emt 0:00:05]} Ra1 {[%emt 0:01:45] [#]} 45. f7 $1 {[%emt 0:00:27]} h3+ {[%emt 0:00:28]} 46. Kg3 {[%emt 0:00:37]} Rg1+ {[%emt 0:00:21]} 47. Kf4 {[%emt 0:00:18] Weighted Error Value: White=0.15 (very precise) /Black=0.37} 1-0

[Event "Croatian 1B League 2022"]
[Site "Porec"]
[Date "2022.09.26"]
[Round "3.9"]
[White "Sertic, Rudolf"]
[Black "Cabarkapa, Novak"]
[Result "0-1"]
[ECO "D00"]
[WhiteElo "2357"]
[BlackElo "2433"]
[Annotator "TA"]
[PlyCount "22"]
[EventDate "2022.09.24"]
[EventType "team-tourn"]
[EventCountry "CRO"]
[SourceTitle "playchess.com"]
[Source "ChessBase"]
[SourceQuality "1"]
[TimeControl "40/5400+30:1800+30"]

{[%evp 9,22,15,9,0,0,-22,-22,-26,26,-70,-64,-228,-225,-500,-489]} 1. d4 {[%emt 0:00:03]} Nf6 {[%emt 0:00:07]} 2. Nf3 {[%emt 0:00:12]} g6 {[%emt 0:01:15]} 3. Nc3 {[%emt 0:00:08]} d5 {[%emt 0:00:27]} 4. Bf4 {[%emt 0:00:07]} Bg7 {[%emt 0:00:20]} 5. e3 {[%emt 0:00:07]} O-O {[%emt 0:00:31][%cal Oc7c5]} 6. h4 {[%emt 0:00:07] D00: 1 d4 d5: Unusual lines.} c5 {[%emt 0:01:11]} 7. Qd2 {[%emt 0:06:38]} Nc6 {[%emt 0:09:48][%cal Bb8c6,Bc6b4,Bb4c2,Bc2a1][%mdl 32]} 8. O-O-O {[%emt 0:07:58] [#]} Bf5 $146 {[%emt 0:16:22]} (8... cxd4 $142 9. exd4 Bf5) ({Predecessor:} 8... cxd4 9. exd4 Bf5 10. Bd3 Bxd3 11. Qxd3 Rc8 12. h5 Qb6 13. hxg6 fxg6 14. Ng5 h6 {0-1 (24) Faldon,D (1960)-Franklin,S (2306) London 2013}) 9. Ne5 {[%emt 0:07:38]} (9. dxc5 $11 Ne4 10. Nxe4 dxe4 11. Qxd8 Raxd8 12. Nd2) 9... Nb4 $1 $15 {[%emt 0:16:55]} 10. a3 $2 {[%emt 0:02:45]} (10. Nd3 $15) 10... Nxc2 $19 {[%emt 0:04:29] [#] Threatens to win with ...Na1.} 11. g4 $2 {[%emt 0:06:07]} (11. Bd3 cxd4 12. exd4 Nxd4 13. Kb1) 11... Na1 {[%emt 0:00:25] Weighted Error Value: White=1.05/Black=0.09 (flawless)} 0-1

[Event "Croatian 1B League 2022"]
[Site "Porec"]
[Date "2022.09.26"]
[Round "3.10"]
[White "Vojak, Daniel"]
[Black "Drmic, Tomislav"]
[Result "1/2-1/2"]
[ECO "C16"]
[WhiteElo "2300"]
[BlackElo "2254"]
[Annotator "TA"]
[PlyCount "136"]
[EventDate "2022.09.24"]
[EventType "team-tourn"]
[EventCountry "CRO"]
[SourceTitle "playchess.com"]
[Source "ChessBase"]
[SourceQuality "1"]
[TimeControl "40/5400+30:1800+30"]

{[%evp 9,136,14,29,27,39,-14,38,34,19,0,26,0,33,8,102,99,117,116,129,129,127,118,160,125,157,130,121,116,131,0,6,-20,0,-48,-23,-40,26,-81,-58,-14,-18,-93,65,61,118,102,192,207,197,184,183,173,375,352,315,259,277,87,153,-30,-27,-50,0,0,37,0,0,0,0,0,12,22,12,12,14,0,0,0,0,-5,-19,-12,0,0,0,0,0,0,0,0,0,0,0,0,0,0,0,0,0,0,0,0,0,0,0,0,0,0,0,0,0,0,0,0,0,0,0,0,0,0,0,0,0,0,0,0,0,0,0]} 1. e4 {[%emt 0:00:03]} e6 {[%emt 0:00:14]} 2. d4 {[%emt 0:00:08]} d5 {[%emt 0:00:24]} 3. Nc3 {[%emt 0:00:18]} Bb4 {[%emt 0:00:23]} 4. e5 {[%emt 0:00:19]} b6 {[%emt 0:00:09]} 5. h4 {[%emt 0:05:31]} Qd7 {[%emt 0:09:47]} 6. h5 {[%emt 0:06:09] C16: French: 3 Nc3 Bb4 4 e5: Lines without ...c5.} h6 {[%emt 0:00:47] [#]} 7. Rh4 $146 {[%emt 0:02:03]} (7. Qg4 $14 Kf8 8. Bd2) ({Predecessor:} 7. Rh3 Ba6 8. Bxa6 Nxa6 9. Qe2 Nb8 10. a3 Bxc3+ 11. Rxc3 Ne7 12. Nf3 Nbc6 13. g4 {½-½ (32) Saric,I (2650)-Ponkratov,P (2619) Budva 2019}) 7... Ba6 {[%emt 0:02:29]} (7... Ne7 $11) 8. Bxa6 {[%emt 0:05:47] White is slightly better.} Nxa6 {[%emt 0:00:06]} 9. Qd3 {[%emt 0:00:32]} Nb8 {[%emt 0:00:12]} (9... Bxc3+ $5 10. bxc3 Qa4 $11) 10. Nf3 {[%emt 0:01:05]} Nc6 {[%emt 0:02:46]} 11. Kf1 {[%emt 0:06:46]} (11. Rg4 $5 {[%cal Rg4g7]}) 11... O-O-O {[%emt 0:03:12]} (11... Bxc3 $11 {remains equal.} 12. Qxc3 Nge7) 12. Ne2 $16 {[%emt 0:06:59]} Bf8 {[%emt 0:04:53]} 13. c3 {[%emt 0:05:23]} Kb8 {[%emt 0:10:55]} 14. b4 {[%emt 0:05:35]} Rc8 {[%emt 0:08:17]} 15. a4 {[%emt 0:09:54]} Nd8 {[%emt 0:09:52]} 16. Qa6 {[%emt 0:07:20]} Qc6 {[%emt 0:03:59]} 17. Rf4 {[%emt 0:04:33]} Ne7 {[%emt 0:03:18]} 18. Qd3 {[%emt 0:02:04] White is much more active.} g5 {[%emt 0:05:47]} 19. Rg4 {[%emt 0:04:53]} (19. hxg6 $1 $16 fxg6 20. Rh4) 19... Nf5 $11 {[%emt 0:01:01]} 20. Nd2 {[%emt 0:02:04]} Be7 {[%emt 0:03:40]} 21. b5 {[%emt 0:05:57]} (21. a5 $11) 21... Qd7 $15 {[%emt 0:00:51]} 22. a5 {[%emt 0:01:34]} Ng7 {[%emt 0:01:02]} (22... Nb7 $15) 23. Ng3 {[%emt 0:00:58]} (23. c4 $11) 23... f5 {[%emt 0:01:49]} 24. exf6 $1 {[%emt 0:00:13]} Bxf6 {[%emt 0:00:01]} 25. Kg1 {[%emt 0:02:09]} (25. Ba3 $1 $11) 25... e5 $2 {[%emt 0:08:28]} (25... Nb7 $1 $17 26. axb6 cxb6) 26. Qf3 $14 {[%emt 0:00:55]} Rf8 {[%emt 0:02:32]} ({Black should try} 26... Ne8 $14) 27. dxe5 $1 $16 {[%emt 0:00:40]} Bxe5 {[%emt 0:05:58]} (27... Be7 $16 28. Qd1 (28. Qe2 Bc5 $11) 28... Nf5) 28. Qxf8 $18 {[%emt 0:00:59]} Qxg4 {[%emt 0:00:11] [#]} 29. axb6 $1 {[%emt 0:00:23] Qa3 would kill now.} Qd7 {[%emt 0:07:57]} (29... Qd1+ $2 30. Ndf1 Qb3 31. bxc7+ Bxc7 32. Qxg7 $18) 30. b7 {[%emt 0:06:13] Really sharp!} (30. bxa7+ $6 Ka8 $16) 30... Kxb7 $2 {[%emt 0:01:28]} (30... Nxb7 31. Qa3 a5) 31. Qa3 {[%emt 0:00:30][%csl Ga1][%cal Ra3a7]} (31. Qc5 Ra8 $14) 31... Ra8 {[%emt 0:00:10]} 32. Qa6+ {[%emt 0:01:17]} Kb8 {[%emt 0:00:07]} 33. Nb3 $2 {[%emt 0:01:04]} (33. Qxh6 $6 Bxc3 34. Ra3 Bd4 35. Qxg5 Nf7 $18) (33. Nf3 $18 {has better winning chances.} Bxc3 34. Ra3) 33... Qe6 {[%emt 0:01:06]} (33... Bxg3 $2 34. Be3 (34. fxg3 Qe6 $16) 34... Bh2+ 35. Kh1 $18) ({Better is} 33... Bxc3 34. Ra2 (34. Nc5 Qd6 $15) 34... Nge6) 34. Qa5 $2 {[%emt 0:01:32]} (34. Be3 $16 {[%cal Re3a7]} Qxa6 35. Rxa6) 34... Bxg3 $11 {[%emt 0:01:24]} 35. fxg3 {[%emt 0:00:12]} Qb6+ {[%emt 0:00:34]} (35... Qe1+ 36. Kh2 Qe8 37. Nd4 $16) (35... Nxh5 $15 36. c4 Qb6+ 37. c5 Qxa5 38. Nxa5 Nxg3) 36. Kh2 {[%emt 0:00:05]} Qxa5 {[%emt 0:01:09]} 37. Nxa5 {[%emt 0:00:05]} (37. Rxa5 $5 {[%cal Ra5a6]} Nf5 38. Ra6 $14) 37... Nxh5 {[%emt 0:00:43] The position is equal.} 38. Be3 {[%emt 0:00:43]} Nf6 {[%emt 0:00:49] Strongly threatening ...Ng4+.} 39. Bd4 {[%emt 0:00:26]} Ng4+ {[%emt 0:00:54]} 40. Kh3 {[%emt 0:00:00][%mdl 1024] White has compensation.} h5 {[%emt 0:00:00]} 41. Rf1 {[%emt 0:04:02]} Kc8 {[%emt 0:02:10]} 42. Rf8 {[%emt 0:03:38] And now Nc6 would win.} a6 {[%emt 0:00:55]} 43. Nc6 {[%emt 0:02:36]} Kd7 {[%emt 0:00:12]} 44. Rh8 $132 {[%emt 0:02:06][%mdl 2048] Hoping for Nxd8. White is fighting back} axb5 {[%emt 0:02:53]} 45. Nxd8 {[%emt 0:00:10]} c5 {[%emt 0:00:16]} 46. Rh7+ {[%emt 0:03:35]} (46. Bxc5 Ra1 47. Rxh5 Nf6 $15) (46. Rxh5 cxd4 47. Kxg4 dxc3 $19) 46... Kxd8 {[%emt 0:01:41][%mdl 4096] Endgame KRB-KRN} 47. Rh8+ $1 {[%emt 0:02:59]} ({Don't blunder} 47. Bxc5 $2 Ra1 48. Rxh5 Nf6 49. Rh8+ (49. Bb6+ $2 Kd7 $19) 49... Kd7 $19) 47... Kc7 {[%emt 0:00:20]} 48. Rxa8 {[%emt 0:00:06]} cxd4 {[%emt 0:00:08]} 49. cxd4 {[%emt 0:00:12] KR-KN} Kb6 {[%emt 0:04:02]} 50. Rd8 {[%emt 0:06:04] Black must now prevent Rd6+.} Ne3 {[%emt 0:09:24]} 51. g4 {[%emt 0:05:44]} hxg4+ {[%emt 0:03:15]} 52. Kg3 {[%emt 0:00:03]} b4 {[%emt 0:04:25]} 53. Kf2 {[%emt 0:00:45]} Nc2 {[%emt 0:01:03]} 54. Ke2 {[%emt 0:01:13] Rd6+ is the strong threat.} Nxd4+ {[%emt 0:01:41]} 55. Kd3 {[%emt 0:00:26]} Kc5 {[%emt 0:00:20]} 56. g3 {[%emt 0:01:31]} Nc6 {[%emt 0:03:14]} (56... Nf5 $5) 57. Re8 {[%emt 0:01:39]} d4 {[%emt 0:01:09]} 58. Rg8 {[%emt 0:01:13]} Ne5+ {[%emt 0:00:24]} 59. Ke4 {[%emt 0:00:23]} Nf3 {[%emt 0:00:47]} 60. Rc8+ {[%emt 0:00:17]} Kb5 {[%emt 0:01:06]} 61. Kd3 {[%emt 0:00:22]} b3 {[%emt 0:01:19]} 62. Rb8+ {[%emt 0:03:43]} Ka4 {[%emt 0:00:12]} 63. Ra8+ {[%emt 0:02:46]} ({Don't go for} 63. Kc4 $2 Ne5+ 64. Kd5 {[#]} d3 $1 65. Ra8+ Kb4 $19) 63... Kb4 {[%emt 0:00:10]} 64. Ra6 {[%emt 0:00:33]} Kc5 {[%emt 0:01:04]} 65. Ra5+ {[%emt 0:00:06]} Kb4 {[%emt 0:00:09]} 66. Ra6 $1 {[%emt 0:00:05]} Kb5 {[%emt 0:00:25]} 67. Ra8 {[%emt 0:00:07]} Kc5 {[%emt 0:01:13]} 68. Ra5+ {[%emt 0:00:06]} Kb4 {[%emt 0:00:23] Black escapes into a draw.  Weighted Error Value: White=0.26 (precise) /Black=0.26 (precise)} 1/2-1/2

[Event "Croatian 1B League 2022"]
[Site "Porec"]
[Date "2022.09.26"]
[Round "3.11"]
[White "Ascic, Pero"]
[Black "Sevo, Igor"]
[Result "1/2-1/2"]
[ECO "A14"]
[WhiteElo "2237"]
[BlackElo "2255"]
[Annotator "TA"]
[PlyCount "156"]
[EventDate "2022.09.24"]
[EventType "team-tourn"]
[EventCountry "CRO"]
[SourceTitle "playchess.com"]
[Source "ChessBase"]
[SourceQuality "1"]
[TimeControl "40/5400+30:1800+30"]

{[%evp 16,156,23,22,57,27,41,37,64,57,50,40,103,119,116,93,137,135,134,134,136,134,131,119,152,149,177,175,287,133,144,129,147,133,127,119,200,148,191,186,194,189,516,494,600,403,457,483,465,439,377,170,170,164,174,126,461,135,161,173,164,175,168,158,166,152,161,120,118,95,95,95,95,95,95,95,95,95,95,95,95,95,95,80,80,85,97,97,97,95,95,95,95,77,79,77,77,77,95,91,91,91,91,75,91,91,91,91,91,91,91,91,91,91,95,51,51,51,51,51,51,51,51,51,51,51,51,51,51,51,51,51,51,51,51,51,51,51,51,51,51,51,51]} 1. Nf3 {[%emt 0:00:19]} Nf6 {[%emt 0:00:30]} 2. g3 {[%emt 0:00:35]} d5 {[%emt 0:00:31]} 3. Bg2 {[%emt 0:00:29]} e6 {[%emt 0:00:22]} 4. O-O {[%emt 0:00:08]} Be7 {[%emt 0:00:22]} 5. b3 {[%emt 0:00:21]} O-O {[%emt 0:00:32]} 6. Bb2 {[%emt 0:00:09]} Nbd7 {[%emt 0:00:50]} 7. c4 {[%emt 0:01:20]} c6 {[%emt 0:01:32]} 8. d3 {[%emt 0:01:25][%cal Bd2d3,Bd3d4][%mdl 32]} Re8 {[%emt 0:09:09]} 9. Nbd2 {[%emt 0:02:11]} Nf8 {[%emt 0:08:19] A14: English Opening: 1...e6 with b3 by White.} 10. Qc2 {[%emt 0:03:09]} Ng6 {[%emt 0:08:32]} 11. e4 {[%emt 0:03:31]} Bf8 {[%emt 0:01:17] [#]} 12. e5 $146 {[%emt 0:03:33]} ({Predecessor:} 12. d4 b6 13. Rfe1 Bb7 14. e5 Nd7 15. h4 Be7 16. h5 Ngf8 17. Nh2 f5 18. exf6 Nxf6 {1-0 (34) Reinderman,D (2571)-Fluit,J (2123) Maarssen 2013}) 12... Nd7 {[%emt 0:02:20]} 13. d4 {[%emt 0:01:27]} dxc4 {[%emt 0:28:00]} (13... b6 $14) 14. Nxc4 $16 {[%emt 0:11:26]} Nb6 {[%emt 0:00:58]} 15. h4 {[%emt 0:00:49]} Be7 {[%emt 0:09:04]} 16. Nfd2 $36 {[%emt 0:06:35][%mdl 2048] White is really pushing.} f5 {[%emt 0:05:02]} 17. exf6 {[%emt 0:06:23]} gxf6 {[%emt 0:00:56]} 18. Rfe1 {[%emt 0:00:22]} Nd5 {[%emt 0:04:53]} 19. a3 {[%emt 0:01:36]} Nf8 {[%emt 0:04:14]} 20. Ne4 {[%emt 0:02:12] White is much more active.} b6 {[%emt 0:08:19]} 21. Qe2 {[%emt 0:01:37]} f5 {[%emt 0:00:41] [#]} (21... a5 $142 22. Ned2 Ng6) 22. Ned2 {[%emt 0:00:30]} (22. Ne5 $1 $18) 22... Bf6 {[%emt 0:01:23]} 23. Nf3 {[%emt 0:00:35][%cal Bd2f3,Bf3e5,Be5d3][%mdl 32]} Re7 {[%emt 0:02:07]} 24. Nfe5 {[%emt 0:00:20]} Rc7 {[%emt 0:00:18]} 25. Rac1 {[%emt 0:00:09]} Ng6 {[%emt 0:00:46]} (25... Bb7 $16 26. a4 Rac8) 26. Nd3 {[%emt 0:01:13]} Rg7 {[%emt 0:00:36][%cal Of6h4]} 27. h5 {[%emt 0:00:22][%cal Bh4h5,Bh5h6][%mdl 32]} Nge7 {[%emt 0:01:43]} 28. Nce5 {[%emt 0:00:23]} Bb7 $2 {[%emt 0:00:40]} (28... Bxe5 29. Nxe5 f4) 29. h6 $18 {[%emt 0:01:42]} Rg5 {[%emt 0:00:05]} 30. Nf3 {[%emt 0:00:11]} Bc8 {[%emt 0:00:54]} 31. Nxg5 {[%emt 0:00:20]} Bxg5 {[%emt 0:00:02]} 32. f4 {[%emt 0:00:26]} Bxh6 {[%emt 0:00:12]} 33. Qh5 {[%emt 0:00:06]} (33. Ne5 $142 Bg7 34. Nxc6 Nxc6 35. Rxc6) 33... Bg7 {[%emt 0:00:50]} 34. Ne5 {[%emt 0:00:04]} Bxe5 {[%emt 0:00:37]} 35. Rxe5 {[%emt 0:00:43] Chess con chili.} (35. dxe5 $18 Bb7 36. Kf2) 35... Ng6 $2 {[%emt 0:00:45][%mdl 8192]} (35... Bd7 $16 {is tougher.} 36. a4 Qf8 37. Qg5+ Kh8) 36. Ree1 $2 {[%emt 0:00:14]} (36. Rxc6 $18 {and the rest is easy. Hoping for Bxd5.} Nde7 37. Rc2 Nxe5 38. Bxa8) 36... Bd7 {[%emt 0:00:06]} 37. Rc2 {[%emt 0:04:06]} Qf8 {[%emt 0:00:51]} 38. Bxd5 {[%emt 0:00:42]} exd5 {[%emt 0:00:20]} 39. Rce2 {[%emt 0:00:16]} Qf6 {[%emt 0:00:34]} 40. Kf2 {[%emt 0:00:00]} Rf8 {[%emt 0:00:00]} 41. b4 {[%emt 0:01:22]} Rf7 {[%emt 0:00:44]} 42. Qh6 {[%emt 0:02:02]} Ne5 {[%emt 0:12:03][%cal Bg6e5,Be5g4,Bg4f6,Bf6e4,Be4d6,Bd6c4][%mdl 32]} 43. Qxf6 {[%emt 0:00:50]} Ng4+ {[%emt 0:00:06]} 44. Kf3 {[%emt 0:04:55][%cal Oe2e8] [#] White wants to mate with Re8+!} Nxf6 {[%emt 0:00:13]} 45. Re7 {[%emt 0:00:08]} Ne4 {[%emt 0:00:14]} 46. Rxf7 {[%emt 0:00:10]} Kxf7 $16 {[%emt 0:00:05][%mdl 4096] Endgame KRB-KBN} 47. Rh1 {[%emt 0:00:22]} Kg6 {[%emt 0:00:34]} 48. Rh2 {[%emt 0:00:29]} Nd6 {[%emt 0:04:01]} 49. Rc2 {[%emt 0:00:41]} Kf6 {[%emt 0:00:36]} 50. a4 {[%emt 0:02:30]} a6 {[%emt 0:00:59]} 51. Kg2 {[%emt 0:00:47]} Nc4 {[%emt 0:07:40] Threatens to win with ...Ne3+.} 52. Bc1 {[%emt 0:00:15] Inhibits Ne3+.} Be8 {[%emt 0:00:17]} 53. Kh3 {[%emt 0:00:12]} Bh5 {[%emt 0:00:40]} 54. Ra2 {[%emt 0:05:03]} Bd1 {[%emt 0:03:32]} 55. Kg2 {[%emt 0:02:29]} Ke6 {[%emt 0:00:34]} 56. Kf2 {[%emt 0:00:14]} Bg4 {[%emt 0:00:47]} 57. Ke1 {[%emt 0:00:32]} Kd7 {[%emt 0:01:26]} 58. Rh2 {[%emt 0:01:13]} h5 {[%emt 0:00:05]} 59. Rc2 {[%emt 0:02:49]} Bf3 {[%emt 0:00:44]} 60. Rc3 {[%emt 0:00:40]} Bg4 {[%emt 0:00:21]} 61. Bd2 {[%emt 0:01:10]} Nd6 {[%emt 0:00:59]} 62. Rb3 {[%emt 0:01:18]} Nc4 {[%emt 0:01:00]} 63. Bc1 {[%emt 0:16:52]} Kd8 {[%emt 0:00:28]} 64. Ba3 {[%emt 0:08:16]} b5 {[%emt 0:03:12]} 65. axb5 {[%emt 0:00:17]} axb5 {[%emt 0:00:06] White is slightly better.} 66. Bc1 {[%emt 0:00:39]} Kc7 {[%emt 0:00:05]} 67. Rb1 {[%emt 0:01:06]} Kb7 {[%emt 0:00:09]} 68. Ra1 {[%emt 0:00:15]} Nd6 {[%emt 0:00:10]} 69. Ra3 {[%emt 0:02:08]} Ne4 {[%emt 0:00:21]} 70. Re3 {[%emt 0:02:24]} Kb6 {[%emt 0:00:09]} 71. Bb2 {[%emt 0:00:38]} Kb7 {[%emt 0:00:07]} 72. Bc3 {[%emt 0:00:18]} Kb6 {[%emt 0:00:07]} 73. Kf1 {[%emt 0:00:15]} Kb7 {[%emt 0:00:04]} 74. Be1 {[%emt 0:00:07]} Kb6 {[%emt 0:00:05]} 75. Kg1 {[%emt 0:00:27]} Kb7 {[%emt 0:00:05]} 76. Ra3 {[%emt 0:03:20]} Kb8 {[%emt 0:00:38]} 77. Ra1 {[%emt 0:00:21]} Kb7 {[%emt 0:00:06]} 78. Rc1 {[%emt 0:00:05]} Kb6 {[%emt 0:00:05] Black escapes into a draw.  Weighted Error Value: White=0.30/Black=0.32} 1/2-1/2